Cogmind - Beta 13 @@@ ROGUE MODE // 2024.04.02 @ 16:17:25 Player: buwwet Result: Destroyed by G-47 Trooper with Particle Gun Performance ------------- Evolutions (3) 1500 Regions Visited (4) 800 Robots Destroyed (38) 190 Value Destroyed (1365) 1365 Prototype IDs (2) 40 Alien Tech Used (0) 0 Bonus (0) 0 TOTAL SCORE: 3895 Bonus ------- None Cogmind --------- Core Integrity 0/700 Matter 270/300 Energy 140/140 System Corruption 17% Temperature Cool (9) Movement Rolling (80) Location -7/Factory Parts ------- > --- POWER (3) -------- Light Deuterium Engine > --- PROPULSION (3) --- Wheel > --- UTILITY (4) ------ Targeting Computer > --- WEAPON (3) ------- (None) > --- INVENTORY (5) ---- Medium Storage Unit Transmission Jammer Peak State ------------ > --- POWER ------------ Light Ion Engine Nuclear Core > --- PROPULSION ------- Medium Treads Medium Treads Medium Treads > --- UTILITY ---------- Advanced Terrain Scan Processor Transmission Jammer Light Armor Plating > --- WEAPON ----------- Shock Rifle Shock Rifle Ion Cannon > --- INVENTORY -------- Improved Ion Engine Light Treads Wheel Medium Storage Unit [Rating: 34] Favorites ----------- Power Light Ion Engine Engine Light Ion Engine Power Core Nuclear Core Propulsion Aluminum Leg Treads Medium Treads Leg Aluminum Leg Wheel Compact Wheel Utility Light Armor Plating Device Improved Heat Sink Storage Medium Storage Unit Processor Targeting Computer Protection Light Armor Plating Weapon Shock Rifle Energy Gun Shock Rifle Energy Cannon Ion Cannon Ballistic Cannon Assault Cannon Launcher Grenade Launcher Build | -11 -10 -9 -8 -7 ------- Run | Yrd Mat Mat Mat Fac Slots Evolved 6 | . . 2 2 2 Power 2 | . . . 1 1 Propulsion 1 | . . . 1 . Utility 2 | . . 1 . 1 Weapon 1 | . . 1 . . Parts Attached 74 | 7 8 11 23 25 Power 10 | 1 1 1 3 4 Engine 8 | 1 1 . 3 3 Core 2 | . . 1 . 1 Reactor . | . . . . . Propulsion 25 | 2 2 3 7 11 Treads 4 | . . . 3 1 Leg 9 | 2 . 2 4 1 Wheel 12 | . 2 1 . 9 Hover . | . . . . . Flight . | . . . . . Utility 21 | 1 2 5 6 7 Device 9 | 1 1 . 3 4 Storage 3 | . . 1 1 1 Processor 3 | . . 1 1 1 Hackware . | . . . . . Protection 6 | . 1 3 1 1 Artifact . | . . . . . Weapon 18 | 3 3 2 7 3 Energy Gun 13 | 3 2 1 6 1 Energy Cannon 2 | . . . 1 1 Ballistic Gun . | . . . . . Ballistic Cannon 1 | . . . . 1 Launcher 2 | . 1 1 . . Special Weapon . | . . . . . Impact Weapon . | . . . . . Slashing Weapon . | . . . . . Piercing Weapon . | . . . . . Special Melee Weapon . | . . . . . Unidentified Prototypes . | . . . . . Corrupted Parts 3 | . . . 1 2 System Corruption 15 | . . . 2 13 Parts Lost 44 | . 7 4 12 21 Power 8 | . 1 . 4 3 Propulsion 14 | . 2 . 3 9 Utility 10 | . 2 . 3 5 Weapon 12 | . 2 4 2 4 Highest Loss Streak 9 | . 7 2 8 9 To Critical Strikes . | . . . . . Average Slot Usage (%) 73 | . 71 87 85 54 Engine 7 | . 8 2 9 6 Core 5 | . . 8 8 2 Treads 4 | . . . 9 . Leg 8 | . 15 8 11 2 Wheel 5 | . 11 13 . 8 Device 10 | . 7 . 8 16 Storage 1 | . . 8 2 . Processor 3 | . . . 5 3 Protection 7 | . 5 22 7 2 Energy Gun 12 | . 18 14 15 5 Energy Cannon 2 | . . . 6 . Ballistic Cannon 1 | . . . . 3 Launcher 1 | . 4 8 . . Naked Turns 2 | . 2 . . . Heaviest Build 35 | 7 10 22 35 29 Greatest Support 84 | 20 20 26 84 48 Greatest Overweight (x) 7 | . . 1 7 6 Average Overweight (x) . | . . . . . Largest Inventory Capacity 10 | 5 5 5 10 10 Average Capacity 5 | 5 5 5 6 5 Most Carried 9 | 4 5 5 9 5 Average Carried 3 | 2 3 4 5 2 Final Capacity 5 | 5 5 5 5 5 Final Carried 5 | 4 5 3 3 2 Class Distribution -------------------- 54% | Mutant 28% | Tank 16% | Scavenger-Mutant Dominant Class ---------------- Mutant | -10/Materials Mutant | -9/Materials Tank | -8/Materials Scavenger-Mutant | -7/Factory Resources | -11 -10 -9 -8 -7 ----------- Run | Yrd Mat Mat Mat Fac Matter Collected 1028 | 238 90 100 315 285 Remotely . | . . . . . Salvage Created 1204 | 70 250 256 375 253 Parts 73 | 4 7 18 31 13 Haulers Intercepted . | . . . . . Recyclers Shooed 3 | . 1 1 1 . Parts Field Recycled . | . . . . . Retrieved Matter . | . . . . . Parts Self-Destructed . | . . . . . Prevented . | . . . . . Kills | -11 -10 -9 -8 -7 ------- Run | Yrd Mat Mat Mat Fac Combat Hostiles Destroyed 30 | 1 7 12 5 5 Guns 8 | 1 2 1 3 1 Cannons 5 | . . . 1 4 AOE 17 | . 5 11 1 . Classes Destroyed 10 | 2 1 2 3 2 Worker 2 | 1 . . . 1 Builder 3 | . . . 2 1 Recycler 1 | . 1 . . . Watcher 2 | . . . 2 . Swarmer 3 | . . 3 . . Grunt 18 | 1 7 8 1 1 Sentry 4 | . . 1 1 2 Specialist 3 | . . . 3 . Hunter 1 | . . . . 1 Programmer 1 | . . . . 1 Best Kill Streak 10 | 1 7 10 2 2 Combat Bots Only 10 | 1 6 10 2 1 Max Kills in Single Turn 2 | 1 2 2 1 1 Gunslinging . | . . . . . Exploded 2 | . 2 2 1 . Melee . | . . . . . Uniques/NPCs Destroyed . | . . . . . Combat | -11 -10 -9 -8 -7 -------- Run | Yrd Mat Mat Mat Fac Hostile Shots Fired 520 | 4 80 56 107 273 Missed 185 | 1 22 20 31 111 Damage Taken 4545 | 36 749 541 1169 2050 Core 1147 | . 157 38 240 712 Absorbed by Shields 274 | . . . 188 86 Redirected to Shielding 50 | . . . . 50 Core Remaining (%) 70 | 100 37 90 56 . Volleys Fired 104 | 4 27 11 21 41 Largest 3 | 2 2 3 3 2 Hottest 173 | 90 80 130 173 119 Shots Fired 190 | 8 43 23 58 58 Gun 120 | 8 33 14 41 24 Cannon 51 | . . . 17 34 Launcher 19 | . 10 9 . . Special . | . . . . . Kinetic 26 | . . . . 26 Thermal 76 | 4 23 14 23 12 Explosive 19 | . 10 9 . . Electromagnetic 69 | 4 10 . 35 20 Robot Hit Streak 12 | 3 9 6 7 12 Robot Miss Streak 3 | 2 3 1 3 2 Penetration Max . | . . . . . Secondary Targets . | . . . . . Shots Hit Robots 120 | 4 28 16 29 43 Core Hits 76 | 3 18 24 15 16 Critical Kills . | . . . . . Critical Parts Destroyed . | . . . . . Critical Strikes 4 | . 2 2 . . Burn 3 | . 1 2 . . Corrupt 1 | . 1 . . . Melee Attacks . | . . . . . Impact . | . . . . . Slashing . | . . . . . Piercing . | . . . . . Sneak Attacks . | . . . . . Combat Hostiles . | . . . . . Follow-up Attacks . | . . . . . Damage Inflicted 3627 | 49 913 797 791 1077 Guns 1169 | 49 261 101 443 315 Cannons 716 | . . . 184 532 Explosions 1675 | . 652 696 122 205 Melee . | . . . . . Ramming 67 | . . . 42 25 Kinetic 474 | . . . . 474 Thermal 1115 | 25 207 101 394 388 Explosive 1348 | . 652 696 . . Electromagnetic 623 | 24 54 . 355 190 Impact . | . . . . . Slashing . | . . . . . Piercing . | . . . . . Highest Corruption 17 | . . . 3 17 Average Corruption 6 | . . . 1 13 Corruption Purged . | . . . . . Corruption Blocked . | . . . . . Effects 28 | . . . 3 25 Message Errors 6 | . . . . 6 Matter Fused 7 | . . . 1 6 Heat Flow Errors 2 | . . . 1 1 Energy Discharges 2 | . . . . 2 Parts Rejected 1 | . . . 1 . Data Loss (minor) 4 | . . . . 4 Misfires 1 | . . . . 1 Misdirections 3 | . . . . 3 Weapon Failures 2 | . . . . 2 Overload Shots . | . . . . . Overflow Damage 111 | . 13 . . 98 Projectiles 9 | . . . . 9 Explosions 102 | . 13 . . 89 Melee . | . . . . . Knockbacks 3 | . . . . 3 Impact . | . . . . . Kinetic 3 | . . . . 3 Secondary . | . . . . . Self-Inflicted Damage 157 | . . 56 . 101 Shots 5 | . . 3 . 2 Rammed 12 | . . . 6 6 Targets Rammed 12 | . . . 6 6 Kicked . | . . . . . Crushed . | . . . . . Highest Temperature 555 | 102 131 273 555 225 Average Temperature 115 | 45 38 85 165 35 Received Heat Transfer 1557 | 18 459 159 440 481 Effects 9 | . . 2 7 . Shutdowns 3 | . . . 3 . Energy Bleed 5 | . . 2 3 . Short Circuit 1 | . . . 1 . Siege Activations . | . . . . . Robots Corrupted . | . . . . . Combat Hostiles . | . . . . . Parts Fried 2 | . 1 . 1 . Impact Corruptions 1 | . . . 1 . Robots Melted . | . . . . . Combat Hostiles . | . . . . . Parts Melted . | . . . . . Heat Transferred 2350 | 74 631 444 631 570 Parts Sabotaged . | . . . . . Parts Stolen . | . . . . . Parts Stripped . | . . . . . Power Chain Reactions 3 | . . . 2 1 Alert | -11 -10 -9 -8 -7 ------- Run | Yrd Mat Mat Mat Fac Peak Influence 394 | 25 198 394 206 199 Initial 161 | . 16 83 161 . Average 90 | 4 53 195 114 51 Maximum Alert Level 1 | . . 1 1 . Low Security (%) 81 | 100 100 54 66 100 Level 1 18 | . . 45 33 . Level 2 . | . . . . . Level 3 . | . . . . . Level 4 . | . . . . . Level 5 . | . . . . . High Security . | . . . . . Max Security . | . . . . . Squads Dispatched 6 | . 1 1 4 . Investigation . | . . . . . Extermination . | . . . . . Reinforcement 6 | . 1 1 4 . Assault . | . . . . . Garrison . | . . . . . Intercept . | . . . . . Searches Triggered . | . . . . . Construction Impeded . | . . . . . Haulers Reinforced . | . . . . . Active Scanning Responses . | . . . . . Cargo Convoy Interrupts . | . . . . . Stealth | -11 -10 -9 -8 -7 --------- Run | Yrd Mat Mat Mat Fac Distress Signals 2 | . . . . 2 Communications Jammed 1 | . . . 1 . Distress Signals 1 | . . . 1 . Times Spotted 57 | 1 11 16 16 13 Peak Tracking Total 7 | 1 6 7 4 6 Tactical Retreats 3 | . 2 . . 1 Traps | -11 -10 -9 -8 -7 ------- Run | Yrd Mat Mat Mat Fac Traps Triggered 2 | . . . 2 . Indirectly . | . . . . . Trap Hack Attempts . | . . . . . Triggered . | . . . . . Disarmed . | . . . . . Reprogrammed . | . . . . . Reused . | . . . . . Traps Extracted . | . . . . . Installed . | . . . . . Triggered . | . . . . . Machines | -11 -10 -9 -8 -7 ---------- Run | Yrd Mat Mat Mat Fac Machines Disabled 7 | . . 1 1 5 Max in Single Turn 4 | . . 1 1 4 Machines Repaired . | . . . . . Machines Dismantled . | . . . . . Machines Sabotaged . | . . . . . Overloaded Fab Kills . | . . . . . Hacking | -11 -10 -9 -8 -7 --------- Run | Yrd Mat Mat Mat Fac Machines Accessed 11 | . 3 2 3 3 Terminals 9 | . 2 2 3 2 Fabricators 1 | . . . . 1 Repair Stations . | . . . . . Recycling Units 1 | . 1 . . . Scanalyzers . | . . . . . Garrison Access . | . . . . . Total Hacks 25 | . 6 4 11 4 Successful 13 | . 2 2 7 2 Failed 12 | . 4 2 4 2 Catastrophic 3 | . 2 1 . . Database Lockouts . | . . . . . Manual 5 | . 2 2 1 . Terminals 21 | . 3 4 11 3 Fabricators 1 | . . . . 1 Repair Stations . | . . . . . Recycling Units 3 | . 3 . . . Scanalyzers . | . . . . . Garrison Access . | . . . . . Terminal Hacks 11 | . . 2 7 2 Record 6 | . . 1 4 1 Prototype ID Bank 1 | . . . 1 . Open DSF 1 | . . . . 1 Alert Level 1 | . . . 1 . Unreport Threat 1 | . . 1 . . Zone Layout 1 | . . . 1 . Fabricator Hacks . | . . . . . Repair Station Hacks . | . . . . . Recycling Unit Hacks 2 | . 2 . . . Recycle Component 1 | . 1 . . . Process 1 | . 1 . . . Scanalyzer . | . . . . . Garrison Access Hacks . | . . . . . Unauthorized Hacks . | . . . . . Terminals . | . . . . . Fabricators . | . . . . . Repair Stations . | . . . . . Recycling Units . | . . . . . Scanalyzers . | . . . . . Garrison Access . | . . . . . Data Cores Recovered . | . . . . . Used . | . . . . . Hacking Detections 10 | . 3 2 3 2 Full Trace Events 1 | . 1 . . . Feedback Events . | . . . . . Feedback Blocked . | . . . . . Robot Schematics Acquired . | . . . . . Robots Built . | . . . . . Authchips . | . . . . . Time . | . . . . . Total Robot Build Rating . | . . . . . Part Schematics Acquired . | . . . . . Parts Built . | . . . . . Authchips . | . . . . . Time . | . . . . . Total Part Build Rating . | . . . . . Parts Repaired . | . . . . . Time . | . . . . . Parts Recycled 1 | . 1 . . . Recycled Matter 62 | . 62 . . . Retrieved Matter . | . . . . . Retrieved Components . | . . . . . Parts Scanalyzed . | . . . . . Part Schematics Acquired . | . . . . . Parts Damaged . | . . . . . Bothacking | -11 -10 -9 -8 -7 ------------ Run | Yrd Mat Mat Mat Fac Used RIF Installer . | . . . . . Robots Hacked . | . . . . . Non-combat . | . . . . . Combat . | . . . . . Robot Hacks Applied . | . . . . . Relay Couplers Released . | . . . . . Fabnet Peak Effective % . | . . . . . Robots Rewired . | . . . . . Allies Hacked . | . . . . . Hacks Repelled . | . . . . . Allies | -11 -10 -9 -8 -7 -------- Run | Yrd Mat Mat Mat Fac Total Allies . | . . . . . Largest Group . | . . . . . Highest-Rated Group . | . . . . . Highest-Rated Ally . | . . . . . Total Orders . | . . . . . Ally Attacks . | . . . . . Total Damage . | . . . . . Kills . | . . . . . Allies Corrupted . | . . . . . Allies Melted . | . . . . . Intel | -11 -10 -9 -8 -7 ------- Run | Yrd Mat Mat Mat Fac Robot Analysis Total . | . . . . . Derelict Logs Recovered . | . . . . . Drone Launches . | . . . . . Drone Recoveries . | . . . . . Exploration | -11 -10 -9 -8 -7 ------------- Run | Yrd Mat Mat Mat Fac Turns Passed 2159 | 98 219 238 881 723 Spaces Moved 1329 | 74 132 178 490 455 Core 74 | 23 4 . 1 46 Treads 179 | . . . 179 . Legs 629 | 51 74 63 310 131 Wheels 447 | . 54 115 . 278 Hover . | . . . . . Flight . | . . . . . Fastest Speed 50 | 50 50 80 120 80 Average Speed 125 | 98 101 98 151 118 Slowest Speed 400 | 120 120 190 400 350 Overloaded Moves . | . . . . . Propulsion Burnouts . | . . . . . Robots Hopped . | . . . . . Cave-ins Triggered . | . . . . . Exploration Rate (%) 20 | 6 29 19 34 13 Regions Visited 4 Branch Regions . Pre-discovered Areas . | . . . . . Known Exits Taken 1 | . . 1 . . Unknown Exits Taken 3 | 1 1 . 1 . Scrap Searched . | . . . . . Spaces Dug . | . . . . . Terrain Destroyed 128 | . 34 51 14 29 Melee . | . . . . . Projectile 2 | . . . 2 . AOE 126 | . 34 51 12 29 Terrain Rammed . | . . . . . Walls Destroyed . | . . . . . Machines Disabled . | . . . . . Actions | -11 -10 -9 -8 -7 --------- Run | Yrd Mat Mat Mat Fac Total 1635 | 89 172 223 582 569 Wait 52 | . . 7 16 29 Move 1325 | 73 131 177 489 455 Hop . | . . . . . Pick Up 37 | 5 5 7 11 9 Fast Attach 39 | 4 4 4 15 12 Attach 31 | 2 4 5 8 12 Detach 3 | . 1 . 1 1 Swap 4 | 1 . 2 . 1 Drop 28 | . . 10 15 3 Fire 104 | 4 27 11 21 41 Melee . | . . . . . Ram 6 | . . . . 6 Kick . | . . . . . Crush 6 | . . . 6 . Escape Stasis . | . . . . . Rewire . | . . . . . Trap . | . . . . . Miscellaneous . | . . . . . Route ------- -11/Scrapyard -10/Materials -9/Materials -8/Materials -7/Factory History --------- Turn | Location | Event 2 | -11/Scrapyard | Met Revision 17 73 | -11/Scrapyard | Discovered new exit (range 8) 99 | -11/Scrapyard | Entered Materials 229 | -10/Materials | Discovered new exit (range 16) 248 | -10/Materials | Lost 7 parts (1p2n2u2w) 254 | -10/Materials | Core integrity fell below 50% 318 | -10/Materials | Entered another Materials area 318 | -9/Materials | Evolved 2 slots: Utility x1, Weapon x1 471 | -9/Materials | Destroyed 10 combat bots 541 | -9/Materials | Discovered new exit (range 9) 555 | -9/Materials | Identified exit to Materials 556 | -9/Materials | Entered another Materials area 556 | -8/Materials | Evolved 2 slots: Power x1, Propulsion x1 1067 | -8/Materials | Build established: Mutant 1412 | -8/Materials | Discovered new exit (range 15) 1437 | -8/Materials | Entered Factory 1437 | -7/Factory | Evolved 2 slots: Power x1, Utility x1 1462 | -7/Factory | Lost 8 parts (3p2n1u2w) 1486 | -7/Factory | Identified exit to DSF 1649 | -7/Factory | Lost 4 parts (1p2n1u) 1684 | -7/Factory | System corruption reached 10% 1771 | -7/Factory | Lost 5 parts (2n1u2w) 1865 | -7/Factory | Lost 3 parts (2n1u) 2051 | -7/Factory | Build established: Scavenger-Mutant 2075 | -7/Factory | Core integrity fell below 50% 2125 | -7/Factory | Core integrity fell below 20% 2160 | -7/Factory | Destroyed by G-47 Trooper with Particle Gun Last Messages --------------- K-01 Serf collects debris. Slammed into G-47 Trooper. Destabilizing: Core damaged (-28). Imp. Heat Sink destroyed. Imp. Deuterium Engine destroyed. Imp. Heat Sink destroyed. Slammed into G-47 Trooper. P-60 Hacker resets G-47 Trooper, system corruption cleaned. G-47 Trooper destroyed. K-01 Serf collects debris. M-28 Smith repairs Imp. Heat Sink. KVJVC0H2&JLPT#PJKGW6/NO Lgt. Treads destroyed. Slammed into R-06 Scavenger. K-01 Serf destroyed. Extracted 94 matter. Slammed into U-05 Engineer. Acquired 27 matter. Acquired Wheel. Map ----- +----------------------------------------------------+ | ?# " #????????????????????????????? | | ?# #????????????????????????????? | | ?# #????????????????????????????? | | ?# #????????????????????????????? | | ?# # #????????????????????????????? | | ?# %/% #????????????????????????????? | | ## # #????????????????????????????? | | + #????????????????????????????? | | ## " #?????? ""???????????????????? | | ?# " ! #????"" """??????????????????? | | ?# % % #?? ???????????????????? | | ?# # * # """ "????????????????????? | | ?#####"""""#### + """ "????????????????????? | | ?????#[ ???# # """ "????????????????????? | | ?????# ????# % #?? ???????????????????? | | ?????# ????# ############?????????????????? | | ?????# ""??# ## #?????????????????? | | ??????? ? ?# ## % #?????????????????? | | ??????????? # ## """"""" #?????????????????? | | ????????????? + ## """"""" #?????????????????? | | ??????????????# ## """"""" #?????????????????? | | ??????????????# ## """" " #?????????????????? | | ?????????????## ## #?????????????????? | | ?????????????# # #?????????????????? | | ?????????????# %m##+##############???????????? | | ?????????????#! g@ ???????? | | ?????????????# p ! ???????? | | ?????????????# % u ???????? | | ?????????????# %##+#########+### ###????????? | | ?????????????# # ????????????????????????? | | ?????????????######### ???????????????????????? | | ?????????????????????# ??????????????????????? | | ?????????????????????# ?????????????????????? | | ?????????????????????# #????????????????????? | | ?????????????????????# #????????????????????? | | ?????????????????????# #????????????????????? | | ?????????????????????# #????????????????????? | | ?????????????????????# #????????????????????? | | ?????????????????????########????????????????????? | | ?????????????????????????????????????????????????? | | ?????????????????????????????????????????????????? | | ?????????????????????????????????????????????????? | | ?????????????????????????????????????????????????? | | ?????????????????????????????????????????????????? | | ?????????????????????????????????????????????????? | | ?????????????????????????????????????????????????? | | ?????????????????????????????????????????????????? | | ?????????????????????????????????????????????????? | | ?????????????????????????????????????????????????? | | ?????????????????????????????????????????????????? | +----------------------------------------------------+ Best States ------------- Heat Dissipation 62 Energy Generation 26 Energy Capacity 405 Matter Stores 290 Matter Capacity 300 Sight Range 16 Terrain Scan Density 210 Jamming Range 12 Armor Coverage 450 Core Shielding 20 Melee Speed Boost 20 Evasion (%) 55 Targeting Accuracy 5 Recoil Reduction 3 Item Schematics ----------------- None Robot Schematics ------------------ None Fabricated ------------ Nothing Alien Tech Used ----------------- None Achievements -------------- Crack Shot Made in Tau Ceti IV No Signal System Compromised Challenges ------------ None Game ------ Seed BiocellPowerSuite Manual? 0 Play Time 00:46:38 Cumulative 2.0 hours Start 2024.04.02 @ 15:33:29 End 2024.04.02 @ 16:17:25 Sessions 1 Manual Loads 0 Difficulty Rogue Special Mode None Game No. 3 Rogue 3 Adventurer 0 Explorer 0 Win Type - Total 0 Types 0/0/0/0/0/0/0/0/0 Lore% 2 Gallery% 5 Achievement% 5 Wizard Run 0 Options --------- Layout 1 ASCII 0 Keyboard 0 Movement Arrows Keybinds 0 Fullscreen 1 Font 24/Tamsyn Map View 50x35 Zoom Use 0% Tactical HUD 0 Map Filters NONE Filters NONE Steam 1 RUN: b3ff8edf-7905-4540-aee3-fc44b56ddd79